fUSD/lending_fUSD_20251105
["ID","MTS","AMOUNT","RATE_DAILY","PERIOD"]
[393246302,1762378232509,-1000.0,0.00016968,2]
[393246303,1762378232518,-20877.17562678,0.0001699,2]
[393246304,1762378232527,-765.80103,0.00017,2]
[393246305,1762378232537,-250.0,0.00017,2]
[393246306,1762378232546,-1967.40906769,0.00017011,2]
[393246307,1762378232557,-4821.0,0.00017068,2]
[393246308,1762378232567,-166.66,0.00017068,2]
[393246309,1762378232576,-500.0,0.00017099,2]
[393246310,1762378232585,-500.0,0.00017099,2]
[393246311,1762378232595,-500.0,0.00017099,2]
[393246312,1762378232605,-630.84239087,0.00017099,2]
[393246313,1762378232614,-1967.40906769,0.00017122,2]
[393246314,1762378232624,-166.66,0.00017182,2]
[393246315,1762378232635,-2070.0,0.00017182,2]
[393246316,1762378232644,-1967.40906769,0.00017233,2]
[393246317,1762378232654,-4821.0,0.0001732,2]
[393246318,1762378232663,-1967.40906769,0.00017344,2]
[393246319,1762378232672,-150.0,0.00017348,2]
[393246320,1762378232682,-166.66,0.000174,2]
[393246321,1762378232691,-607.0,0.00017419,2]
[393246322,1762378232700,-6656.0,0.00017419,2]
[393246323,1762378232710,-574.0,0.00017419,2]
[393246324,1762378232719,-300.0,0.00017435,2]
[393246325,1762378232728,-1967.40906769,0.00017456,2]
[393246326,1762378232738,-2070.0,0.00017462,2]
[393246327,1762378232747,-1680.0,0.00017471,2]
[393246328,1762378232756,-348.96725968,0.00017489,2]
[393246329,1762378232765,-326.42421284,0.00017489,2]
[393246330,1762378232775,-2578.61689819,0.00017489,2]
[393246331,1762378232784,-250.0,0.00017489,2]
[393246332,1762378232793,-300.0,0.00017489,2]
[393246333,1762378232802,-300.0,0.00017489,2]
[393246334,1762378232812,-250.0,0.00017489,2]
[393246335,1762378232822,-195.0,0.00017489,2]
[393246336,1762378232831,-300.0,0.00017489,2]
[393246337,1762378232840,-300.0,0.00017489,2]
[393246338,1762378232849,-300.0,0.00017489,2]
[393246339,1762378232858,-250.0,0.00017489,2]
[393246340,1762378232868,-195.0,0.00017489,2]
[393246341,1762378232877,-2070.0,0.00017509,2]
[393246342,1762378232887,-1967.40906769,0.00017567,2]
[393246343,1762378232896,-265.95,0.00017581,2]
[393246344,1762378232906,-293.97223654,0.0001761,2]
[393246345,1762378232915,-4821.0,0.00017621,2]
[393246346,1762378232925,-820.0,0.00017629,2]
[393246347,1762378232934,-1595.0,0.00017629,2]
[393246348,1762378232943,-1272.0,0.00017629,2]
[393246349,1762378232952,-812.0,0.00017629,2]
[393246350,1762378232961,-905.0,0.00017629,2]
[393246351,1762378232971,-1188.0,0.00017629,2]
[393246352,1762378232980,-549.09,0.00017661,2]
[393246353,1762378232989,-549.09,0.00017661,2]
[393246354,1762378232998,-500.0,0.00017673,2]
[393246355,1762378233008,-500.0,0.00017673,2]
[393246356,1762378233018,-500.0,0.00017673,2]
[393246357,1762378233027,-500.0,0.00017673,2]
[393246358,1762378233035,-500.0,0.00017673,2]
[393246359,1762378233045,-1967.40906769,0.00017678,2]
[393246360,1762378233054,-1637.98750797,0.00017686,2]
[393246361,1762378233583,-432.01249203,0.00017686,2]
[393246362,1762378233593,-2070.0,0.00017698,2]
[393246363,1762378233602,-589.41461623,0.00017699,2]
[393246364,1762378233612,-45984.89824925,0.000177,2]
[393246365,1762378233623,-25316.61252448,0.000177,2]
[393246366,1762378235285,6783.86966709,0.00015799,2]
[393246367,1762378235307,7549.99383291,0.00015799,2]
[393246368,1762378236275,-39450.89708645,0.000177,2]
[393246369,1762378236287,-378.31500004,0.000177,2]
[393246370,1762378236300,-1632.75253932,0.000177,2]
[393246371,1762378236404,-6474.42767374,0.000177,2]
[393246372,1762378236415,-25897.5,0.000177,2]
[393246405,1762378238015,-3070.00001,0.00017419,2]
[393246411,1762378238073,-351.99999,0.00017419,2]
[393246412,1762378238083,-6939.65755794,0.000177,2]
[393246413,1762378238095,-2565.58378454,0.000177,2]
[393246414,1762378238106,-4572.92941166,0.000177,2]
[393246415,1762378238132,-573.66408346,0.000177,2]
[393246416,1762378238144,-42247.90822091,0.000177,2]
[393246417,1762378238191,-736.01741496,0.000177,2]
[393246419,1762378238249,-23834.7968912,0.000177,2]
[393246425,1762378240522,-1.7e-07,0.000177,2]
[393246426,1762378240533,-274055.30593553,0.000177,2]
[393246427,1762378240542,-1845.0,0.000177,2]
[393246428,1762378240551,-1000.0,0.0001771,2]
[393246429,1762378240560,-2070.0,0.0001771,2]
[393246430,1762378240570,-1000.0,0.00017713,2]
[393246431,1762378240579,-1000.0,0.00017721,2]
[393246432,1762378240588,-1000.0,0.00017725,2]
[393246433,1762378240597,-150.0,0.0001773,2]
[393246434,1762378240606,-2500.0,0.00017733,3]
[393246436,1762378240615,-221.75791629,0.00017739,2]
[393246437,1762378240624,-2500.0,0.00017742,3]
[393246438,1762378240634,-166.66,0.0001775,2]
[393246439,1762378240644,-2500.0,0.0001775,3]
[393246440,1762378240653,-293.97223652,0.00017755,2]
[393246441,1762378240662,-993.0,0.00017757,2]
[393246442,1762378240671,-2500.0,0.00017759,3]
[393246443,1762378240680,-477.76462643,0.00017759,3]
[393246444,1762378240689,-2500.0,0.00017768,3]
[393246445,1762378240699,-1000.0,0.0001777,2]
[393246446,1762378240707,-500.0,0.00017773,2]
[393246447,1762378240717,-500.0,0.00017773,2]
[393246448,1762378240726,-893.58488772,0.00017775,2]
[393246449,1762378240735,-2500.0,0.00017777,3]
[393246450,1762378240743,-150.0,0.0001778,2]
[393246451,1762378240753,-158.69063049,0.00017781,2]
[393246452,1762378240762,-2500.0,0.00017786,3]
[393246453,1762378240771,-1967.40906769,0.00017789,2]
[393246454,1762378240780,-2500.0,0.00017794,3]
[393246455,1762378240789,-162.50988356,0.00017795,2]
[393246456,1762378240798,-5000.0,0.000178,2]
[393246457,1762378240807,-2500.0,0.00017803,3]
[393246458,1762378240816,-4038.815,0.00017805,2]
[393246459,1762378240825,-2500.0,0.00017812,3]
[393246460,1762378240834,-2070.0,0.00017812,2]
[393246461,1762378240843,-454.8867,0.0001782,2]
[393246462,1762378240852,-2500.0,0.00017821,3]
[393246463,1762378240861,-2500.0,0.0001783,3]
[393246464,1762378240870,-203.397,0.00017838,2]
[393246465,1762378240880,-2500.0,0.00017838,3]
[393246466,1762378240889,-500.0,0.00017856,2]
[393246467,1762378240898,-200.0,0.00017856,2]
[393246468,1762378240907,-158.69063049,0.00017863,2]
[393246469,1762378240916,-924.96152339,0.00017867,2]
[393246470,1762378240925,-1000.0,0.00017867,2]
[393246471,1762378240934,-3020.0,0.00017887,2]
[393246472,1762378240943,-4821.0,0.00017887,2]
[393246473,1762378240952,-446.09919644,0.000179,2]
[393246474,1762378240960,-507.91610017,0.000179,3]
[393246475,1762378240969,-1967.40906769,0.000179,2]
[393246476,1762378240978,-293.97223652,0.000179,2]
[393246477,1762378240987,-18595.50112646,0.000179,2]
[393246478,1762378240996,-620.6246043,0.000179,2]
[393246479,1762378241005,-200.92506264,0.00017911,2]
[393246480,1762378241013,-150.0,0.00017914,2]
[393246481,1762378241023,-4821.0,0.00017916,2]
[393246482,1762378241032,-207.37525067,0.00017921,2]
[393246483,1762378241041,-211.24037734,0.00017921,2]
[393246484,1762378241050,-150.0,0.00017921,2]
[393246485,1762378241058,-150.0,0.00017921,2]
[393246486,1762378241067,-150.0,0.00017921,2]
[393246487,1762378241076,-241.58927028,0.00017921,2]
[393246488,1762378241085,-150.0,0.00017921,2]
[393246489,1762378241094,-150.0,0.00017921,2]
[393246490,1762378241284,-150.0,0.00017921,2]
[393246491,1762378241294,-150.0,0.00017921,2]
[393246492,1762378241304,-150.0,0.00017921,2]
[393246493,1762378241314,-808.74,0.00017921,2]
[393246494,1762378241323,-150.0,0.00017921,2]
[393246495,1762378241331,-500.0,0.00017921,2]
[393246496,1762378241340,-150.0,0.00017921,2]
[393246497,1762378241349,-150.0,0.00017921,2]
[393246498,1762378241358,-150.0,0.00017921,2]
[393246499,1762378241368,-500.0,0.00017921,2]
[393246500,1762378241377,-150.0,0.00017921,2]
[393246501,1762378241388,-150.0,0.00017921,2]
[393246502,1762378241397,-179.8382956,0.00017921,2]
[393246503,1762378241406,-150.0,0.00017921,2]
[393246504,1762378241415,-150.0,0.00017921,2]
[393246505,1762378241424,-1000.0,0.00017929,2]
[393246506,1762378241433,-454.8867,0.0001793,2]
[393246507,1762378241442,-1000.0,0.00017941,2]
[393246508,1762378241451,-158.69063049,0.00017945,2]
[393246509,1762378241460,-1000.0,0.00017946,2]
[393246510,1762378241469,-1000.0,0.00017954,2]
[393246511,1762378241479,-150.0,0.00017954,2]
[393246512,1762378241487,-150.0,0.00017954,2]
[393246513,1762378241497,-150.0,0.00017954,2]
[393246514,1762378241507,-150.0,0.00017954,2]
[393246515,1762378241516,-150.0,0.00017954,2]
[393246516,1762378241526,-150.0,0.00017954,2]
[393246517,1762378241535,-302.03,0.00017954,2]
[393246518,1762378241544,-150.0,0.00017954,2]
[393246519,1762378241554,-150.0,0.00017954,2]
[393246520,1762378241563,-150.0,0.00017954,2]
[393246521,1762378241572,-500.0,0.00017973,2]
[393246522,1762378241581,-500.0,0.00017973,2]
[393246523,1762378241591,-324.3529394,0.00017973,2]
[393246524,1762378241600,-359.52575001,0.00017973,2]
[393246525,1762378241608,-500.0,0.00017973,2]
[393246526,1762378241617,-500.0,0.00017973,2]
[393246527,1762378241626,-500.0,0.00017973,2]
[393246528,1762378241638,-500.0,0.00017973,2]
[393246529,1762378241648,-500.0,0.00017973,2]
[393246530,1762378241657,-500.0,0.00017973,2]
[393246531,1762378241666,-500.0,0.00017973,2]
[393246532,1762378241675,-500.0,0.00017973,2]
[393246533,1762378241684,-211.1136905,0.0001799,2]
[393246534,1762378241693,-549.09,0.0001799,2]
[393246535,1762378241702,-549.09,0.0001799,2]
[393246536,1762378241711,-549.09,0.0001799,2]
[393246537,1762378241719,-549.09,0.0001799,2]
[393246538,1762378241728,-549.09,0.0001799,2]
[393246539,1762378241737,-549.09,0.0001799,2]
[393246540,1762378241747,-569.42521414,0.00017992,2]
[393246541,1762378241756,-300.0,0.00017999,2]
[393246542,1762378241765,-300.0,0.00017999,2]
[393246543,1762378241774,-666.0,0.00017999,2]
[393246544,1762378241783,-300.0,0.00017999,2]
[393246545,1762378241792,-253.31699392,0.00017999,2]
[393246546,1762378241802,-300.0,0.00017999,2]
[393246547,1762378241812,-209823.16866284,0.00018,2]
[393246548,1762378241822,-200828.46620337,0.00018,2]
[393246549,1762378241850,-23721.02620793,0.00018,2]
[393246552,1762378243463,-46.03307101,0.00017335,2]
[393246561,1762378261767,10000.01,0.00015799,2]
[393246562,1762378261790,10000.01,0.00015799,2]
[393246563,1762378261814,10000.01,0.00015799,2]
[393246564,1762378261836,10000.01,0.00015799,2]
[393246565,1762378261859,10000.01,0.00015799,2]
[393246566,1762378261881,10000.01,0.00015799,2]
[393246567,1762378261904,10000.01,0.00015799,2]
[393246568,1762378261927,10000.01,0.00015799,2]
[393246569,1762378278867,2299.71808432,0.00015798,2]
[393246570,1762378355363,-444.03740239,0.00015799,2]
[393246571,1762378357619,-354.75469372,0.00015799,2]
[393246572,1762378360802,350.0,0.00015798,2]
[393246573,1762378360836,280.80234733,0.00015798,2]
[393246574,1762378360865,598.64445534,0.00015798,2]
[393246575,1762378360896,230.72688513,0.00015798,2]
[393246576,1762378362582,500.0,0.00015798,2]
[393246577,1762378362895,500.0,0.00015798,2]
[393246578,1762378362941,509.990566,0.00015798,2]
[393246579,1762378378773,167.77672955,0.00015798,2]
[393246580,1762378381219,300.0,0.00015798,2]
[393246581,1762378417114,-229.81438506,0.00015799,2]
[393246582,1762378420499,-205.04525979,0.00015799,2]
[393246583,1762378422344,-265.14035515,0.00015799,2]
[393246584,1762378451896,210.8865949,0.00015699,2]
[393246585,1762378475280,-164.61317085,0.00015799,2]
[393246586,1762378477325,-320.573624,0.00015799,2]
[393246587,1762378485005,229.8144,0.00015699,2]
[393246588,1762378501186,300.0,0.00015798,2]
[393246589,1762378501231,1200.0,0.00015798,2]
[393246590,1762378507599,300.0,0.00015798,2]
[393246591,1762378569088,320.5736,0.00015699,2]
[393246592,1762378580682,279.6991,0.00015699,2]
[393246593,1762378622842,300.0,0.00015798,2]
[393246594,1762378629804,1121.37723743,0.00015699,2]
[393246595,1762378629831,445.23886257,0.00015699,2]
[393246596,1762378629907,151.0,0.00015799,2]
[393246597,1762378630525,-173.29557802,0.00015799,2]
[393246598,1762378631024,151.0,0.00015799,2]
[393246599,1762378631656,151.0,0.00015799,2]
[393246600,1762378632274,151.0,0.00015799,2]
[393246601,1762378633243,151.0,0.00015799,2]
[393246602,1762378633992,151.0,0.00015799,2]
[393246603,1762378634612,151.0,0.00015799,2]
[393246604,1762378635186,151.0,0.00015799,2]
[393246605,1762378635242,151.0,0.00015799,2]
[393246606,1762378635785,500.0,0.00015799,2]
[393246607,1762378635820,151.0,0.00015799,2]
[393246608,1762378635903,151.0,0.00015799,2]
[393246609,1762378636560,151.0,0.00015799,2]
[393246610,1762378637031,151.0,0.00015799,2]
[393246611,1762378637059,151.0,0.00015799,2]
[393246612,1762378637658,151.0,0.00015799,2]
[393246613,1762378637688,151.0,0.00015799,2]
[393246614,1762378638288,151.0,0.00015799,2]
[393246615,1762378638746,151.0,0.00015799,2]
[393246616,1762378638908,151.0,0.00015799,2]
[393246617,1762378639357,151.0,0.00015799,2]
[393246618,1762378639709,151.0,0.00015799,2]
[393246619,1762378639996,151.0,0.00015799,2]
[393246620,1762378640360,151.0,0.00015799,2]
[393246621,1762378640624,151.0,0.00015799,2]
[393246622,1762378640974,151.0,0.00015799,2]
[393246623,1762378641447,151.0,0.00015799,2]
[393246624,1762378641976,151.0,0.00015799,2]
[393246625,1762378642287,151.0,0.00015799,2]
[393246626,1762378642443,151.0,0.00015799,2]
[393246627,1762378642598,151.0,0.00015799,2]
[393246628,1762378642900,151.0,0.00015799,2]
[393246629,1762378643101,151.0,0.00015799,2]
[393246630,1762378643941,151.0,0.00015799,2]
[393246632,1762378647046,-151.0,0.00015799,2]
[393246633,1762378647085,-151.0,0.00015799,2]
[393246634,1762378647116,-151.0,0.00015799,2]
[393246635,1762378647146,-151.0,0.00015799,2]
[393246636,1762378647175,-151.0,0.00015799,2]
[393246637,1762378647205,-151.0,0.00015799,2]
[393246638,1762378647236,-151.0,0.00015799,2]
[393246639,1762378647266,-151.0,0.00015799,2]
[393246640,1762378647295,-151.0,0.00015799,2]
[393246641,1762378647325,-151.0,0.00015799,2]
[393246642,1762378647770,-151.0,0.00015799,2]
[393246643,1762378647779,-8789.00677642,0.00015799,2]
[393246644,1762378647808,-10000.01,0.00015799,2]
[393246645,1762378647830,-10000.01,0.00015799,2]
[393246646,1762378647864,-10000.01,0.00015799,2]
[393246647,1762378647995,-10000.01,0.00015799,2]
[393246648,1762378648120,-10000.01,0.00015799,2]
[393246649,1762378648296,-10000.01,0.00015799,2]
[393246650,1762378650241,-200.92506264,0.0001572,2]
[393246651,1762378650272,-211.4192555,0.00015799,2]
[393246652,1762378650323,-9175.32136372,0.00015799,2]
[393246653,1762378650356,-10000.01,0.00015799,2]
[393246654,1762378650502,-10000.01,0.00015799,2]
[393246656,1762378681393,300.0,0.00015798,2]
[393246658,1762378741993,300.0,0.00015798,2]
[393246659,1762378790063,2378.11257489,0.00015699,2]
[393246660,1762378792586,242.3808,0.00015699,2]
[393246661,1762378801236,300.0,0.00015798,2]
[393246662,1762378801633,1200.0,0.00015798,2]
[393246663,1762378820369,-260.23885041,0.00015799,2]
[393246664,1762378962559,3485.3177,0.00015699,2]
[393246665,1762378981585,300.0,0.00015798,2]
[393246666,1762378982659,177.09,0.00012692,2]
[393246667,1762379090240,-170.02715145,0.00015799,2]
[393246668,1762379091750,-384.83639826,0.00015799,2]
[393246669,1762379095186,-236.03287157,0.00015799,2]
[393246670,1762379099044,-203.07658498,0.00015799,2]
[393246671,1762379102695,1200.0,0.00015798,2]
[393246672,1762379104228,117.10892511,0.00015798,2]
[393246673,1762379104253,182.89107489,0.00015798,2]
[393246674,1762379104499,170.0,0.00015798,2]
[393246675,1762379173528,1000.0,0.00015798,2]
[393246676,1762379221333,300.0,0.00015798,2]
[393246680,1762379287337,300.0,0.00015798,2]
[393246681,1762379300417,2140.30131741,0.00015699,2]
[393246682,1762379351130,-4879.956648,0.00015799,2]
[393246684,1762379378749,654.6,0.00013699,2]
[393246685,1762379401670,1200.0,0.00015798,2]
[393246701,1762379432673,-416.20303398,0.00015799,2]
[393246702,1762379432692,-450.0,0.00015799,2]
[393246703,1762379432703,-7438.07785168,0.00015799,2]
[393246706,1762379432725,-225439.78800055,0.00015799,2]
[393246708,1762379432734,-1000.0,0.00015799,2]
[393246710,1762379432743,-250.0,0.00015799,2]
[393246713,1762379432754,-500.0,0.00015799,2]
[393246715,1762379432763,-500.0,0.000158,2]
[393246717,1762379432772,-13349.61,0.0001582,2]
[393246719,1762379432781,-250.0,0.00015823,2]
[393246721,1762379432791,-3126.95,0.0001585,2]
[393246723,1762379432800,-250.0,0.00015865,2]
[393246725,1762379432809,-200.0,0.00015876,2]
[393246727,1762379432818,-500.0,0.00015898,2]
[393246729,1762379432827,-500.0,0.00015898,2]
[393246731,1762379432836,-500.0,0.00015898,2]
[393246733,1762379432846,-641.3407631,0.00015898,2]
[393246735,1762379432855,-500.0,0.00015898,2]
[393246737,1762379432864,-500.0,0.00015898,2]
[393246739,1762379432873,-435.66735613,0.00015898,2]
[393246741,1762379432882,-500.0,0.00015898,2]
[393246743,1762379432891,-2140.30131733,0.00015944,2]
[393246745,1762379432900,-10021.03,0.00015951,2]
[393246747,1762379432909,-2751.0,0.00015978,2]
[393246749,1762379432919,-2140.30131733,0.00016188,2]
[393246751,1762379432928,-9026.31454933,0.00016356,2]
[393246753,1762379432937,-401.54,0.00016408,2]
[393246755,1762379432947,-2140.30131733,0.00016433,2]
[393246757,1762379432956,-826.0,0.00016435,2]
[393246759,1762379432965,-500.0,0.00016438,2]
[393246761,1762379432974,-1315.83,0.00016438,2]
[393246763,1762379432983,-2140.30131733,0.00016677,2]
[393246765,1762379432993,-153.29,0.00016849,2]
[393246767,1762379433002,-500.0,0.00016849,2]
[393246769,1762379433011,-5000.0,0.00016886,2]
[393246771,1762379433023,-1683.30631169,0.00016894,2]
[393246773,1762379433033,-169.45746801,0.00016894,2]
[393246775,1762379433042,-2140.30131733,0.00016922,2]
[393246777,1762379433052,-500.0,0.00016973,2]
[393246780,1762379433063,-500.0,0.00016973,2]
[393246781,1762379433072,-500.0,0.00016973,2]
[393246783,1762379433081,-500.0,0.00016973,2]
[393246785,1762379433090,-222.67209339,0.00016973,2]
[393246787,1762379433101,-500.0,0.00016973,2]
[393246789,1762379433111,-500.0,0.00016973,2]
[393246791,1762379433120,-169634.82688192,0.00016986,2]
[393246794,1762379433131,-8092.92151329,0.00016986,2]
[393246796,1762379433142,-373.237,0.00016986,2]
[393246799,1762379433187,-446.388,0.00016986,2]
[393246800,1762379433200,-73769.43660479,0.00016986,2]
[393246801,1762379433209,-741.62,0.00016994,2]
[393246802,1762379433219,-500.0,0.00016999,2]
[393246803,1762379433228,-500.0,0.00016999,2]
[393246804,1762379433238,-277.35679052,0.00016999,2]
[393246805,1762379433247,-500.0,0.00016999,2]
[393246806,1762379433256,-325.96912786,0.00016999,2]
[393246807,1762379433266,-322.6107,0.00016999,2]
[393246808,1762379433275,-250.0,0.00017,2]
[393246809,1762379433284,-1683.30631165,0.00017006,2]
[393246810,1762379433293,-5647.0,0.00017013,2]
[393246811,1762379433303,-262.07785697,0.00017036,2]
[393246813,1762379433313,-339.29,0.00017037,2]
[393246815,1762379433333,-169.45746798,0.00017038,2]
[393246817,1762379433343,-1683.30631165,0.00017118,2]
[393246819,1762379433352,-2140.30131733,0.00017166,2]
[393246821,1762379433364,-169.45746798,0.00017181,2]
[393246823,1762379433373,-1683.30631165,0.00017229,2]
[393246825,1762379433383,-1602.0,0.00017323,2]
[393246827,1762379433392,-169.45746798,0.00017325,2]
[393246829,1762379433402,-1683.30631165,0.00017341,2]
[393246831,1762379433411,-1680.0,0.00017363,2]
[393246833,1762379433420,-337.92378644,0.00017379,2]
[393246835,1762379433430,-195.0,0.00017379,2]
[393246837,1762379433439,-300.0,0.00017379,2]
[393246839,1762379433449,-300.0,0.00017379,2]
[393246841,1762379433458,-300.0,0.00017379,2]
[393246843,1762379433468,-300.0,0.00017379,2]
[393246845,1762379433478,-300.0,0.00017379,2]
[393246847,1762379433487,-250.0,0.00017379,2]
[393246849,1762379433496,-195.0,0.00017379,2]
[393246851,1762379433505,-195.0,0.00017379,2]
[393246853,1762379433514,-195.0,0.00017379,2]
[393246855,1762379433523,-2140.30131733,0.00017411,2]
[393246857,1762379433532,-1602.0,0.00017412,2]
[393246859,1762379433542,-1683.30631165,0.00017453,2]
[393246861,1762379433551,-39.1235041,0.00017456,2]
[393246878,1762379438234,-110.8764959,0.00017456,2]
[393246880,1762379438244,-150.0,0.00017456,2]
[393246882,1762379438254,-300.0,0.00017456,2]
[393246884,1762379438263,-1602.0,0.00017457,2]
[393246885,1762379438272,-169.45746798,0.00017469,2]
[393246886,1762379438282,-5647.0,0.00017487,2]
[393246887,1762379438292,-503.00202269,0.00017521,2]
[393246888,1762379438302,-500.0,0.00017521,2]
[393246889,1762379438311,-1000.0,0.00017521,2]
[393246890,1762379438321,-173.26401343,0.00017521,2]
[393246891,1762379438348,-326.73598657,0.00017521,2]
[393246892,1762379438358,-848.64001343,0.00017565,2]
[393246893,1762379438374,-763.35359916,0.00017565,2]
[393246894,1762379438386,-71.31269906,0.00017565,2]
[393246895,1762379438396,-169.45746798,0.00017613,2]
[393246896,1762379438406,-607.0,0.00017629,2]
[393246897,1762379438415,-125.02983296,0.00017629,2]
[393246898,1762379438428,-1260.0,0.00017629,2]
[393246899,1762379438440,-1118.10003,0.00017629,2]
[393246900,1762379438451,-918.87013704,0.00017629,2]
[393246901,1762379438461,-574.0,0.00017629,2]
[393246903,1762379438470,-1314.0,0.00017629,2]
[393246904,1762379438479,-829.0,0.00017629,2]
[393246905,1762379438488,-1595.0,0.00017629,2]
[393246906,1762379438498,-905.0,0.00017629,2]
[393246907,1762379438507,-1188.0,0.00017629,2]
[393246908,1762379438517,-1308.281,0.00017629,2]
[393246909,1762379438527,-812.0,0.00017629,2]
[393246911,1762379438536,-2675.99313048,0.00017629,2]
[393246919,1762379440343,-1672.96545323,0.00015799,2]
[393246920,1762379440353,-3980.00686952,0.00017629,2]
[393246922,1762379440362,-2141.0,0.00017629,2]
[393246924,1762379440371,-559.0,0.00017629,2]
[393246926,1762379440380,-6473.0,0.00017629,2]
[393246928,1762379440389,-2140.30131733,0.00017655,2]
[393246930,1762379440398,-549.09,0.00017661,2]
[393246931,1762379440408,-549.09,0.00017661,2]
[393246933,1762379440417,-549.09,0.00017661,2]
[393246935,1762379440426,-549.09,0.00017661,2]
[393246937,1762379440435,-549.09,0.00017661,2]
[393246939,1762379440444,-659.23,0.00017661,2]
[393246941,1762379440453,-549.09,0.00017661,2]
[393246943,1762379440462,-549.09,0.00017661,2]
[393246945,1762379440472,-549.09,0.00017661,2]
[393246947,1762379440481,-549.09,0.00017661,2]
[393246949,1762379440491,-993.0,0.00017675,2]
[393246951,1762379440500,-1683.30631165,0.00017676,2]
[393246953,1762379440509,-221.75791629,0.00017687,2]
[393246955,1762379440518,-893.58488772,0.00017694,2]
[393246957,1762379440527,-1000.0,0.00017698,2]
[393246958,1762379440536,-500.0,0.00017699,2]
[393246959,1762379440545,-500.0,0.00017699,2]
[393246960,1762379440554,-1845.0,0.000177,2]
[393246962,1762379440563,-1602.0,0.00017724,2]
[393246964,1762379440573,-12001.43,0.00017728,2]
[393246965,1762379440583,-5647.0,0.00017732,2]
[393246966,1762379440593,-1000.0,0.00017733,2]
[393246967,1762379440602,-924.96152339,0.00017736,2]
[393246968,1762379440611,-150.0,0.0001774,2]
[393246969,1762379440620,-169.45746798,0.00017756,2]
[393246970,1762379440629,-1000.0,0.00017762,2]
[393246971,1762379440638,-770.0,0.00017765,2]
[393246972,1762379440647,-1000.0,0.00017767,2]
[393246973,1762379440656,-5647.0,0.0001778,2]
[393246974,1762379440665,-1000.0,0.0001778,2]
[393246975,1762379440674,-1683.30631165,0.00017788,2]
[393246977,1762379440684,-1000.0,0.00017791,2]
[393246979,1762379440694,-2500.0,0.00017794,3]
[393246981,1762379440854,-4038.815,0.000178,2]
[393246982,1762379440864,-162.50988356,0.00017801,2]
[393246983,1762379440872,-2500.0,0.00017803,3]
[393246984,1762379440881,-770.0,0.00017804,2]
[393246985,1762379440891,-2500.0,0.00017812,3]
[393246986,1762379440900,-150.0,0.0001782,2]
[393246987,1762379440909,-150.0,0.0001782,2]
[393246988,1762379440918,-150.0,0.0001782,2]
[393246989,1762379440927,-1000.0,0.0001782,2]
[393246990,1762379440936,-303.2578,0.0001782,2]
[393246991,1762379440944,-2500.0,0.00017821,3]
[393246992,1762379440954,-203.397,0.00017829,2]
[393246993,1762379440963,-2500.0,0.0001783,3]
[393246994,1762379440971,-2500.0,0.00017838,3]
[393246995,1762379440980,-2500.0,0.00017847,3]
[393246996,1762379440989,-2500.0,0.00017856,3]
[393246997,1762379440998,-500.0,0.00017856,2]
[393246998,1762379441007,-200.0,0.00017856,2]
[393246999,1762379441017,-150.0,0.00017859,2]
[393247000,1762379441032,-2500.0,0.00017865,3]
[393247001,1762379441040,-2500.0,0.00017874,3]
[393247002,1762379441050,-1000.0,0.0001788,2]
[393247003,1762379441059,-2500.0,0.00017882,3]